bitfinex/quotes_ETHUSD_20260312
["timestamp","ask_amount","ask_price","bid_price","bid_amount"]
[1773308559477,1.78651965,2051.0,2050.5,4.04213017]
[1773308560470,0.56759164,2050.9,2050.5,2.82291877]
[1773308560673,0.56759164,2050.9,2050.4,1.21923163]
[1773308560972,1.78649788,2051.1,2050.5,2.82291877]
[1773308561179,0.56759164,2051.0,2050.5,2.82291877]
[1773308562449,0.56759164,2051.0,2050.5,2.28]
[1773308562862,0.54775464,2051.3,2050.4,0.52038875]
[1773308563548,0.54775464,2051.3,2050.5,0.52038875]
[1773308564281,0.54775464,2051.3,2050.5,2.28]
[1773308564659,0.54775464,2051.3,2050.5,2.80038875]
[1773308564855,0.54775464,2051.1,2050.6,1.21915536]
[1773308565995,4.875195,2051.3,2050.7,0.52038875]
[1773308565996,0.54775464,2051.3,2050.7,0.52038875]
[1773308566349,0.002,2051.1,2050.7,0.52038875]
[1773308566982,0.002,2051.1,2050.8,1.21903647]
[1773308567371,0.002,2051.1,2050.7,1.73944335]
[1773308568485,0.002,2051.1,2050.8,0.52038875]
[1773308569183,0.002,2051.1,2050.9,0.52038875]
[1773308569478,7.90204463,2052.0,2051.0,0.52038875]
[1773308569479,0.54775464,2051.8,2051.0,0.52038875]
[1773308569682,0.54775464,2051.8,2051.1,2.79938875]
[1773308570594,0.54775464,2051.8,2051.1,2.279]
[1773308571581,0.49133726,2051.6,2051.2,1.21879875]
[1773308571955,0.49133726,2051.6,2051.1,3.49781553]
[1773308572396,0.49133726,2051.6,2050.7,0.520638]
[1773308572757,0.49133726,2051.6,2050.8,2.278]
[1773308573483,0.49133726,2051.6,2050.8,2.798638]
[1773308575182,0.49133726,2051.4,2050.9,1.21897703]
[1773308575493,0.49133726,2051.4,2050.9,2.278]
[1773308575698,0.49133726,2051.4,2050.9,2.798638]
[1773308576880,1.21862052,2051.5,2050.9,2.278]
[1773308577077,0.49133726,2051.6,2051.0,0.520638]
[1773308577281,0.49133726,2051.4,2051.0,1.73952948]
[1773308577468,0.49133726,2051.4,2051.0,1.21889148]
[1773308577884,1.70992755,2051.6,2051.0,1.73952948]
[1773308578266,1.21859029,2051.6,2051.0,1.73952948]
[1773308578586,0.49133726,2051.5,2051.0,1.73952948]
[1773308578974,0.49133726,2051.5,2050.9,1.21896208]
[1773308579173,1.71001718,2051.4,2051.0,2.277]
[1773308579373,0.49133726,2051.3,2051.0,2.277]
[1773308579795,0.49133726,2051.5,2051.0,2.277]
[1773308580091,0.49133726,2051.6,2051.1,0.520638]
[1773308580458,0.002,2051.3,2051.1,0.520638]
[1773308580889,0.002,2051.3,2050.9,1.21992953]
[1773308581062,0.49333726,2051.3,2051.0,2.277]
[1773308581663,0.49333726,2051.3,2051.0,3.49588647]
[1773308582461,0.002,2051.3,2051.0,4.01652447]
[1773308583984,0.002,2051.3,2051.1,0.520638]
[1773308586094,0.002,2051.3,2051.2,1.21879875]
[1773308588277,0.002,2051.3,2051.1,1.73944878]
[1773308589293,0.002,2051.3,2051.0,3.49588371]
[1773308589471,0.002,2051.3,2051.1,2.277]
[1773308590995,0.002,2051.3,2051.0,1.21888371]
[1773308591192,0.002,2051.3,2051.1,2.277]
[1773308591390,0.49333726,2051.3,2050.9,1.74056117]
[1773308591590,0.49333726,2051.3,2051.0,2.277]
[1773308592390,0.49333726,2051.3,2051.0,3.49587646]
[1773308594281,0.49333726,2051.3,2051.2,0.001]
[1773308594486,1.71207659,2051.3,2051.2,0.001]
[1773308594673,0.49333726,2051.3,2051.2,0.001]
[1773308595697,1.71207659,2051.3,2051.2,0.001]
[1773308595896,0.49333726,2051.3,2051.2,0.001]
[1773308596202,1.71207659,2051.3,2051.2,0.001]
[1773308597482,0.49333726,2051.3,2051.2,0.001]
[1773308599585,1.71207659,2051.3,2051.2,0.001]
[1773308602691,0.49333726,2051.3,2051.2,0.001]
[1773308602890,1.71207659,2051.3,2051.2,0.001]
[1773308603500,0.49333726,2051.3,2051.2,0.001]
[1773308604281,1.71207659,2051.3,2051.2,0.001]
[1773308604779,0.49333726,2051.3,2051.2,0.001]
[1773308605405,4.87322092,2052.1,2051.2,0.001]
[1773308605406,0.51876288,2052.0,2051.3,0.51250953]
[1773308606681,0.51876288,2051.8,2051.3,0.51250953]
[1773308606892,0.51876288,2051.8,2051.2,1.73228849]
[1773308608403,0.51876288,2051.8,2051.2,0.51350953]
[1773308608607,0.51876288,2051.8,2051.2,1.7323052]
[1773308608805,0.51876288,2051.6,2051.2,1.73230636]
[1773308608995,0.51876288,2051.6,2051.3,0.001]
[1773308611585,0.51876288,2051.6,2051.3,0.51350953]
[1773308611878,0.51876288,2051.5,2051.2,0.001]
[1773308612888,1.2186647,2051.5,2051.2,0.001]
[1773308613094,0.51876288,2051.4,2051.2,0.001]
[1773308615832,0.51876288,2051.5,2051.2,0.001]
[1773308617429,0.51876288,2051.7,2051.2,0.51350953]
[1773308617655,23.98350125,2053.5,2051.7,0.51250953]
[1773308617656,4.87151523,2052.8,2051.7,0.51250953]
[1773308617933,0.51876288,2052.6,2051.9,0.51250953]
[1773308618099,0.51876288,2052.6,2052.0,0.51250953]
[1773308618300,1.21782454,2052.9,2052.2,0.51250953]
[1773308618527,0.51876288,2052.8,2052.2,0.51250953]
[1773308618739,1.73630073,2053.4,2052.8,0.51250953]
[1773308619117,0.1636171,2053.5,2053.0,0.51250953]
[1773308619496,0.1636171,2053.5,2053.1,2.39046912]
[1773308619702,0.1636171,2053.5,2053.1,1.73018036]
[1773308619902,0.1636171,2053.5,2053.1,0.51250953]
[1773308620312,1.38108023,2053.5,2053.1,0.51250953]
[1773308620926,1.38105859,2053.5,2053.1,0.51250953]
[1773308621616,0.51876288,2053.4,2052.8,0.51250953]
[1773308621931,0.1636171,2053.5,2053.1,0.51250953]
[1773308622241,1.38105676,2053.5,2053.1,0.51250953]
[1773308622566,0.1636171,2053.5,2053.1,0.51250953]
[1773308623044,1.3810539,2053.5,2053.1,0.51250953]
[1773308623254,1.3810539,2053.5,2052.9,0.49202564]
[1773308623428,0.002,2053.3,2052.9,0.49202564]
[1773308623633,0.002,2053.3,2052.6,0.49202564]
[1773308623634,0.48451434,2053.3,2052.6,0.49202564]
[1773308624038,0.002,2053.3,2052.8,0.49202564]
[1773308626253,0.48451434,2053.3,2052.5,2.76102564]
[1773308627220,0.48451434,2053.3,2052.5,0.49202564]
[1773308627557,0.48251434,2053.1,2052.3,2.76102564]
[1773308628669,0.48251434,2053.1,2052.3,0.49202564]
[1773308628964,0.48251434,2053.1,2052.2,0.49202564]
[1773308629769,0.48251434,2052.9,2052.2,0.49202564]
[1773308631366,1.21773015,2053.0,2052.3,0.47726438]
[1773308631569,1.72043499,2053.3,2052.6,0.47726438]
[1773308631758,0.002,2053.3,2052.8,0.47726438]
[1773308632439,0.1636171,2053.5,2053.0,0.47726438]
[1773308632869,1.3810761,2053.5,2053.0,0.47726438]
[1773308633876,0.1636171,2053.5,2053.2,0.47726438]
[1773308635745,0.1636171,2053.5,2053.3,1.21755223]
[1773308635950,0.1636171,2053.5,2053.3,0.47726438]
[1773308636160,1.38105871,2053.5,2053.0,0.47726438]
[1773308636472,1.88190335,2053.5,2052.8,1.69510355]
[1773308636662,1.88190335,2053.5,2052.8,0.47726438]
[1773308637748,1.88190335,2053.5,2052.8,1.69510354]
[1773308638066,1.88190335,2053.5,2052.9,0.47726438]
[1773308638271,0.50084464,2053.4,2052.7,0.47726438]
[1773308639445,1.38106526,2053.5,2052.9,0.47726438]
[1773308639637,1.38107387,2053.5,2052.9,0.47726438]
[1773308639836,1.38107387,2053.5,2053.0,1.69499453]
[1773308640575,1.38107295,2053.5,2053.1,0.47726438]
[1773308640775,0.1636171,2053.5,2053.1,0.47726438]
[1773308641075,0.50084464,2054.1,2053.1,0.47726438]
[1773308641572,4.86749306,2054.6,2053.0,2.86509903]
[1773308641573,0.50084464,2054.7,2053.6,0.47726438]
[1773308641775,4.86723678,2054.6,2053.8,0.47726438]
[1773308642070,4.86723678,2054.6,2053.9,1.21719655]
[1773308642272,1.21660421,2054.9,2054.2,0.47726438]
[1773308642490,2.68273555,2058.0,2054.9,0.47726438]
[1773308642795,2.68273555,2058.0,2056.1,0.47726438]
[1773308642796,2.03747221,2057.1,2056.1,0.47726438]
[1773308643280,0.00753742,2057.0,2056.1,0.47726438]
[1773308643580,2.03747221,2057.1,2055.9,2.254]
[1773308643581,0.32132448,2057.1,2056.3,0.47726438]
[1773308643743,0.32132448,2057.1,2056.7,2.12463326]
[1773308644063,1.21501999,2057.6,2056.4,0.47726438]
[1773308644064,13.878517,2057.6,2056.4,0.47726438]
[1773308644379,0.50084464,2057.4,2056.5,1.64736888]
[1773308644574,6.38033815,2057.6,2056.4,0.47726438]
[1773308644940,6.38033815,2057.5,2056.4,0.47726438]
[1773308645172,6.38033815,2057.6,2056.4,0.47726438]
[1773308645478,2.14821352,2057.4,2056.4,0.47726438]
[1773308646178,6.38033815,2057.3,2056.7,0.47726438]
[1773308646473,1.21507186,2057.5,2056.7,0.47726438]
[1773308646676,7.59538903,2057.6,2056.7,0.47726438]
[1773308646840,6.37280073,2057.5,2056.7,2.66626438]
[1773308647039,6.37280073,2057.5,2056.8,0.47726438]
[1773308647240,0.00753742,2057.5,2056.8,0.47726438]
[1773308647646,0.76286813,2058.9,2057.7,0.16361709]
[1773308647885,1.21341552,2060.3,2058.9,0.47726438]
[1773308648049,0.50084464,2060.3,2058.9,1.69147034]
[1773308648244,0.50084464,2059.9,2057.8,0.47726438]
[1773308648444,2.52143266,2059.8,2058.0,0.47726438]
[1773308648681,1.10254659,2059.7,2058.4,0.47726438]
[1773308648991,1.10254659,2059.6,2058.3,2.141]
[1773308649148,6.37280073,2059.6,2058.5,0.47726438]
[1773308649483,1.64736888,2060.1,2058.8,0.47726438]
[1773308649683,1.63772832,2060.2,2058.8,0.47726438]
[1773308649984,1.63772832,2059.4,2058.5,0.47726438]
[1773308650343,6.37280073,2059.3,2058.5,0.47726438]
[1773308650652,6.37280073,2059.8,2058.6,0.47726438]
[1773308650854,6.37280073,2059.8,2058.7,0.47726438]
[1773308651075,6.37280073,2059.7,2058.9,0.47726438]
[1773308651248,6.37280073,2059.7,2058.8,2.108]
[1773308651249,6.37280073,2059.9,2059.1,0.47726438]
[1773308651449,2.85112541,2060.4,2059.1,0.47726438]
[1773308651761,1.63772832,2060.2,2059.2,2.123]
[1773308652145,1.63772832,2060.2,2059.2,0.47726438]
[1773308652146,6.37280073,2060.1,2059.2,0.47726438]
[1773308652482,6.37280073,2060.1,2059.3,0.47726438]
[1773308652645,1.63772832,2061.1,2059.8,0.47726438]
[1773308652850,6.04622298,2061.0,2060.1,0.47726438]
[1773308653183,6.04622298,2061.8,2060.3,0.47726438]
[1773308653478,0.50084464,2061.6,2060.2,3.20163414]
[1773308653684,6.04622298,2061.5,2060.2,3.20163414]
[1773308653850,6.04622298,2061.5,2060.3,0.47726438]
[1773308654046,0.50084464,2061.6,2060.4,1.21335662]
[1773308654047,6.04622298,2061.4,2060.4,1.21335662]
[1773308654379,6.04622298,2061.4,2060.5,0.47726438]
[1773308654380,1.21280822,2061.4,2060.5,0.47726438]
[1773308654685,6.04622298,2061.3,2060.6,0.47726438]
[1773308654889,1.63772832,2061.7,2060.6,0.47726438]
[1773308655176,1.63772832,2061.2,2059.8,0.47726438]
[1773308655379,6.54706762,2061.1,2059.8,0.47726438]
[1773308655546,6.04622298,2061.1,2060.3,1.63772832]
[1773308655746,6.04622298,2061.0,2060.1,0.47726438]
[1773308655992,0.50084464,2061.6,2060.0,2.1149927]
[1773308656300,1.71361266,2061.4,2060.0,3.32857501]
[1773308656582,7.25895915,2061.5,2060.1,0.47726438]
[1773308656779,6.04622298,2061.4,2060.1,0.47726438]
[1773308656954,7.25881704,2061.7,2060.1,0.47726438]
[1773308657149,6.04622298,2061.6,2060.5,0.47726438]
[1773308657367,7.6839513,2061.5,2060.2,1.63772832]
[1773308657597,7.6839513,2061.5,2060.1,0.47726438]
[1773308657598,1.63772832,2061.3,2060.1,0.47726438]
[1773308658116,0.50084464,2061.2,2059.8,3.32865887]
[1773308658271,0.50084464,2061.6,2060.4,1.63772832]
[1773308658606,7.25875571,2061.8,2060.6,1.63772832]
[1773308658898,6.04622298,2061.7,2060.5,0.47726438]
[1773308659216,0.50084464,2061.6,2060.2,0.47726438]
[1773308659369,0.50084464,2061.4,2060.2,0.47726438]
[1773308659702,1.63772832,2061.3,2060.0,3.81672832]
[1773308659899,1.63772832,2061.3,2060.0,1.63772832]
[1773308660070,7.6839513,2061.3,2060.0,2.184]
[1773308660394,8.0405522,2061.2,2060.1,1.21353332]
[1773308660902,6.04622298,2061.1,2060.1,1.21353332]
[1773308661200,6.04622298,2061.0,2060.1,1.21353332]
[1773308661368,6.04622298,2061.2,2060.2,0.79790334]
[1773308661569,6.04622298,2061.2,2060.3,2.43563166]
[1773308661769,6.04622298,2061.1,2060.3,2.43563166]
[1773308661990,1.21281167,2061.4,2060.3,2.43563166]
[1773308662190,4.85091839,2061.5,2060.4,1.21335662]
[1773308662371,6.04622298,2061.4,2060.4,1.21335662]
[1773308662783,6.04622298,2061.3,2060.0,2.85126164]
[1773308663100,1.63772832,2061.2,2060.1,1.21353332]
[1773308663277,6.04622298,2061.2,2060.1,2.85126164]
[1773308663483,6.04622298,2061.2,2060.1,3.64916498]
[1773308663881,0.78144353,2061.4,2060.1,2.01143666]
[1773308664084,0.78144353,2061.4,2060.1,1.21353332]
[1773308664287,0.78144353,2061.2,2060.1,1.63772832]
[1773308664481,7.25904983,2061.3,2060.1,2.43563166]
[1773308664702,6.04622298,2061.2,2060.4,1.63772832]
[1773308664904,1.21278945,2061.4,2060.3,2.43563166]
[1773308665082,1.21278945,2061.4,2060.5,1.63772832]
[1773308665286,1.21278945,2061.4,2060.4,0.79790334]
[1773308666186,6.04622298,2061.3,2060.4,0.79790334]
[1773308666386,1.21288569,2061.2,2060.5,1.21329774]
[1773308666785,1.21288569,2061.2,2060.2,1.21347441]
[1773308666786,6.04622298,2061.1,2060.2,1.21347441]
[1773308668483,6.04622298,2061.0,2060.3,0.79790334]
[1773308668779,4.84938755,2062.2,2060.2,1.21347441]
[1773308668780,1.43170052,2062.5,2061.0,0.79790334]
[1773308669112,5.70564908,2062.4,2061.6,0.79790334]
[1773308669410,7.524572,2062.8,2061.2,0.88387649]
[1773308669609,8.896562,2062.9,2061.3,0.88387649]
[1773308669784,5.70564908,2062.8,2061.3,0.88387649]
[1773308669984,5.70564908,2062.8,2060.5,1.63772832]
[1773308669985,5.70564908,2062.9,2061.5,0.88387649]
[1773308670211,11.08138008,2063.2,2061.8,0.88387649]
[1773308670382,1.21175169,2063.2,2062.2,0.88387649]
[1773308670583,1.63772832,2063.3,2062.3,0.88387649]
[1773308670584,5.70564908,2063.1,2062.3,0.88387649]
[1773308670907,5.70564908,2063.2,2062.3,0.88387649]
[1773308671110,1.63772832,2063.0,2062.0,3.36841154]
[1773308671327,5.70564908,2063.1,2062.0,1.19637649]
[1773308671512,5.70564908,2063.1,2062.3,1.19637649]
[1773308671691,5.70564908,2063.0,2062.3,1.19637649]
[1773308672016,1.21167547,2063.3,2062.3,1.19637649]
[1773308672017,5.70564908,2063.2,2062.3,1.19637649]
[1773308672385,1.21176869,2063.1,2062.2,1.2122637]
[1773308672586,6.91741777,2063.1,2062.3,1.19637649]
[1773308672788,5.70564908,2063.0,2062.4,1.19637649]
[1773308673190,5.70564908,2062.9,2062.4,1.19637649]
[1773308673395,5.70564908,2063.0,2062.4,1.19637649]
[1773308673791,5.70564908,2062.9,2062.4,1.19637649]
[1773308673991,5.70564908,2062.9,2062.0,7.02550886]
[1773308673992,1.63772832,2062.9,2062.0,1.19637649]
[1773308674188,5.70564908,2062.8,2062.0,1.19637649]
[1773308674391,2.84949701,2063.1,2062.1,1.19637649]
[1773308674620,2.84949701,2063.1,2061.6,1.19637649]
[1773308674621,1.63772832,2062.7,2061.6,1.19637649]
[1773308674917,5.70564908,2063.0,2061.8,1.19637649]
[1773308675220,1.63772832,2062.7,2061.8,1.19637649]
[1773308675396,7.3433774,2062.9,2061.8,1.19637649]
[1773308675600,5.70564908,2062.8,2061.8,1.19637649]
[1773308675996,5.70564908,2062.8,2061.5,5.05642476]
[1773308675997,5.70564908,2062.7,2062.2,1.50887649]
[1773308676199,4.84605615,2063.6,2062.4,1.50887649]
[1773308676399,1.21159251,2063.4,2062.6,1.50887649]
[1773308677017,2.84932083,2063.4,2062.6,1.50887649]
[1773308677210,1.63772832,2063.0,2062.3,1.50887649]
[1773308678500,1.21200368,2062.7,2062.3,1.50887649]
[1773308679623,1.21200368,2062.7,2061.9,3.03381091]
[1773308679792,6.48409774,2063.5,2062.0,1.82137649]
[1773308679998,1.21159251,2063.4,2062.0,1.82137649]
[1773308680214,1.63772832,2063.1,2062.0,1.82137649]
[1773308680413,1.21159251,2063.4,2062.0,1.82137649]
[1773308680621,1.21159251,2063.4,2062.2,1.82137649]
[1773308681211,1.63772832,2063.1,2062.2,1.82137649]
[1773308681728,1.63772832,2063.3,2062.2,1.82137649]
[1773308681895,1.63772832,2063.1,2062.2,1.82137649]
[1773308682230,1.21159251,2063.4,2062.2,1.82137649]
[1773308682231,1.63772832,2062.9,2062.2,1.82137649]
[1773308682728,1.21176869,2063.1,2062.3,1.82137649]
[1773308683927,1.63772832,2063.0,2062.3,1.82137649]
[1773308684132,1.21176869,2063.1,2062.3,1.82137649]
[1773308684335,2.84949701,2063.1,2062.3,1.82137649]
[1773308684512,1.21192129,2062.9,2062.4,1.82137649]
[1773308684725,1.21170996,2063.2,2062.4,1.82137649]
[1773308685405,2.84943828,2063.2,2062.4,1.82137649]
[1773308685818,1.21170996,2063.2,2062.4,1.82137649]
[1773308686643,4.84677989,2063.3,2062.6,2.13387649]
[1773308687942,4.84656771,2063.5,2062.6,2.13387649]
[1773308687943,1.2115338,2063.5,2062.6,2.13387649]
[1773308688742,1.2115338,2063.5,2062.8,2.13387649]
[1773308688942,4.84539733,2063.9,2062.8,2.13387649]
[1773308689315,1.63772832,2063.8,2062.8,2.13387649]
[1773308689717,4.84539733,2063.9,2062.8,2.13387649]
[1773308690018,1.63772832,2063.8,2062.8,2.13387649]
[1773308690721,1.21129899,2063.9,2063.0,2.13387649]
[1773308690920,1.63772832,2063.7,2063.0,2.13387649]
[1773308691222,1.63772832,2063.5,2062.2,2.44637649]
[1773308691531,1.63772832,2063.1,2062.4,2.44637649]
[1773308691713,4.02572832,2063.5,2062.4,2.44637649]
[1773308691914,1.63772832,2063.3,2062.4,2.44637649]
[1773308692115,1.58924817,2063.3,2062.2,2.44637649]
[1773308692322,1.21129899,2063.9,2062.3,2.44637649]
[1773308692323,1.63772832,2063.6,2062.3,2.44637649]
[1773308692544,1.63772832,2063.4,2062.3,2.44637649]
[1773308692743,1.21165123,2063.3,2062.5,2.44637649]
[1773308692930,1.63772832,2063.2,2062.5,2.44637649]
[1773308693938,1.63772832,2063.0,2062.2,2.44637649]
[1773308694345,1.63772832,2063.2,2062.2,2.44637649]
[1773308694525,2.84937955,2063.3,2062.2,2.44637649]
[1773308694733,2.84937955,2063.3,2062.4,2.44637649]
[1773308695449,1.63772832,2062.9,2062.4,2.44637649]
[1773308695656,1.63772832,2063.1,2062.4,2.44637649]
[1773308695952,2.84937955,2063.3,2062.4,2.44637649]
[1773308697821,1.63772832,2063.1,2062.4,2.44637649]
[1773308699050,1.21182743,2063.0,2061.9,1.22318825]
[1773308699255,0.63772832,2062.9,2061.9,1.22318825]
[1773308699452,1.63772832,2062.5,2061.9,1.22318825]
[1773308699622,0.63772832,2062.9,2061.9,1.22318825]
[1773308699623,1.63772832,2062.7,2061.9,1.22318825]
[1773308700152,1.63772832,2062.5,2061.9,1.22318825]
[1773308700341,1.63772832,2062.5,2061.6,1.22318825]
[1773308700543,0.63772832,2062.9,2061.6,1.22318825]
[1773308700748,18.30750832,2062.9,2061.6,1.22318825]
[1773308701050,1.63772832,2063.3,2062.0,1.22318825]
[1773308701249,1.63772832,2063.1,2062.2,1.22318825]
[1773308702123,1.63772832,2062.7,2061.9,0.92409412]
[1773308702347,1.63772832,2062.9,2061.9,0.92409412]
[1773308702552,2.87617902,2063.2,2062.0,0.92409412]
[1773308702757,4.84588338,2063.7,2062.5,1.63772832]
[1773308702931,4.84588338,2063.7,2062.6,0.92409412]
[1773308703131,1.21141638,2063.8,2062.8,0.92409412]
[1773308704556,1.63772832,2063.7,2062.8,0.92409412]
[1773308705251,1.21147509,2063.6,2062.8,0.92409412]
[1773308705646,4.84561038,2063.9,2062.9,0.92409412]
[1773308705647,1.21129899,2063.9,2062.9,0.92409412]
[1773308705844,0.003,2064.4,2063.8,0.92409412]
[1773308706034,1.2140103,2064.4,2063.8,0.92409412]
[1773308706376,1.21400928,2064.4,2063.8,0.92409412]
[1773308706552,1.2105365,2065.2,2064.0,0.92259412]
[1773308706751,3.19781038,2065.7,2064.4,0.92259412]
[1773308706752,4.84126319,2065.6,2064.4,0.92259412]
[1773308706932,4.84126319,2065.6,2064.1,4.18320287]
[1773308706933,0.80881038,2065.7,2065.0,0.92259412]
[1773308707367,1.45134781,2067.1,2065.0,0.92259412]
[1773308707368,11.625513,2067.2,2065.3,0.92259412]
[1773308707553,0.33758032,2067.1,2065.3,0.92259412]
[1773308707773,11.625513,2067.2,2065.5,0.92259412]
[1773308707774,10.700989,2067.2,2065.5,0.92259412]
[1773308708067,0.06168059,2066.9,2065.5,0.92259412]
[1773308708369,1.63772832,2066.0,2065.5,0.92259412]
[1773308708536,8.279608,2065.9,2064.8,0.92259412]
[1773308708738,1.63772832,2066.3,2065.0,0.92259412]
[1773308708964,1.63772832,2066.5,2065.2,0.92259412]
[1773308709169,1.63772832,2066.5,2065.4,0.92259412]
[1773308709348,3.27545664,2067.0,2065.6,0.92259412]
[1773308709349,1.20971644,2066.6,2065.6,0.92259412]
[1773308709544,2.83641144,2067.0,2065.8,0.92259412]
[1773308709742,1.6269291,2066.6,2065.8,0.92259412]
[1773308710344,4.46334054,2067.0,2065.8,0.92259412]
[1773308710345,1.6269291,2066.8,2065.8,0.92259412]
[1773308710735,1.20948234,2067.0,2065.8,0.92259412]
[1773308711262,1.2096579,2066.7,2065.8,0.92259412]
[1773308711457,1.2096579,2066.7,2065.9,0.92259412]
[1773308711964,1.6269291,2067.0,2066.0,0.92259412]
[1773308712653,1.6269291,2067.1,2066.0,0.92259412]
[1773308712973,4.83749097,2067.2,2065.0,1.45275906]
[1773308712974,1.6269291,2066.6,2065.0,1.45275906]
[1773308713175,0.63693733,2064.9,2064.2,0.98862746]
[1773308713480,1.21041928,2065.4,2064.2,0.98862746]
[1773308713634,1.6269291,2065.3,2064.2,0.98862746]
[1773308714053,1.21041928,2065.4,2064.2,0.98862746]
[1773308714233,1.6269291,2064.7,2063.5,0.98862746]
[1773308714434,1.6269291,2065.0,2063.7,0.98862746]
[1773308714760,1.6269291,2064.4,2063.7,0.98862746]
[1773308715065,1.6269291,2064.6,2063.3,3.53410201]
[1773308715268,1.6269291,2064.6,2063.4,0.98862746]
[1773308715269,1.21094696,2064.5,2063.4,0.98862746]
[1773308715480,0.003,2064.1,2063.4,0.98862746]
[1773308715649,0.003,2064.1,2062.8,0.98862746]
[1773308715650,1.76533483,2064.1,2062.8,0.98862746]
[1773308715848,21.511076,2064.0,2062.8,0.98862746]
[1773308716365,1.76233483,2063.5,2062.3,0.98862746]
[1773308716838,1.76233483,2063.6,2062.3,0.98862746]
[1773308717150,23.426254,2063.5,2062.3,0.98862746]
[1773308717353,1.21141638,2063.7,2062.7,1.76233483]
[1773308717553,1.21141638,2063.7,2062.8,0.98862746]
[1773308718853,1.21141638,2063.7,2062.4,0.98862746]
[1773308719059,1.21141638,2063.7,2062.6,0.98862746]
[1773308719257,4.84566555,2063.8,2062.6,0.98862746]
[1773308719258,4.84566555,2064.0,2062.6,0.98862746]
[1773308719458,0.003,2064.1,2062.6,0.98862746]
[1773308719459,1.21418162,2064.1,2062.6,0.98862746]
[1773308720167,15.264289,2063.5,2062.2,2.4178483]
[1773308720539,15.264289,2063.5,2062.2,1.20556197]
[1773308720540,1.76233483,2063.3,2062.2,1.20556197]
[1773308720872,6.89541283,2063.6,2062.3,1.20456197]
[1773308721077,7.51756,2063.6,2062.3,1.20456197]
[1773308721407,1.21165123,2063.3,2062.3,2.41679879]
[1773308721570,1.21165123,2063.3,2062.3,1.20456197]
[1773308721776,1.21165123,2063.3,2062.3,2.4167856]
[1773308722074,1.21165123,2063.3,2062.3,2.41679506]
[1773308722972,1.21165123,2063.3,2062.3,1.20456197]
[1773308723365,4.84660495,2063.5,2062.3,1.20456197]
[1773308723759,4.84660495,2063.6,2062.4,1.21217998]
[1773308723954,4.78395065,2063.6,2062.5,1.20456197]
[1773308724182,1.21124031,2064.0,2062.5,1.20456197]
[1773308724767,2.97357514,2064.0,2062.5,1.20456197]
[1773308725083,1.21124031,2064.0,2062.8,1.20456197]
[1773308725377,0.003,2064.1,2063.3,1.20456197]
[1773308725681,0.003,2064.1,2063.4,1.20456197]
[1773308726385,0.003,2064.1,2063.4,1.18991068]
[1773308726579,4.84329317,2064.8,2063.6,1.20456197]
[1773308727483,0.002,2065.1,2063.8,1.20456197]
[1773308727869,1.76433483,2065.1,2063.8,1.20456197]
[1773308728073,1.76233483,2064.8,2063.8,1.20456197]
[1773308728269,1.76233483,2065.0,2063.8,1.20456197]
[1773308728672,1.76233483,2064.7,2063.8,1.20456197]
[1773308728850,3.001832,2064.6,2063.1,1.20456197]
[1773308729056,1.76233483,2064.7,2063.2,1.20456197]
[1773308729252,1.76233483,2064.4,2063.2,1.20456197]
[1773308729490,1.21106428,2064.3,2063.2,1.20456197]
[1773308729976,1.76233483,2064.1,2063.2,1.20456197]
[1773308730180,1.76233483,2063.5,2062.3,1.20456197]
[1773308730490,4.815227,2063.4,2062.3,1.20456197]
[1773308730674,4.815227,2063.4,2062.2,1.21329526]
[1773308730675,2.18636632,2063.9,2062.5,1.20456197]
[1773308731001,1.76233483,2064.0,2062.5,1.20456197]
[1773308731189,5.38623,2064.2,2062.5,1.20456197]
[1773308731412,0.43376036,2063.6,2062.2,0.001]
[1773308731700,1.21170996,2063.2,2062.2,0.001]
[1773308732060,1.21170996,2063.2,2062.2,1.20556197]
[1773308732258,1.21170996,2063.2,2063.0,0.001]
[1773308732493,4.84683986,2063.6,2063.0,0.001]
[1773308732703,1.2115338,2063.5,2063.0,0.001]
[1773308733079,1.2115338,2063.5,2062.5,1.20456197]
[1773308733285,1.2115338,2063.5,2062.8,0.001]
[1773308733488,4.84683986,2063.6,2062.8,0.001]
[1773308733672,4.84683986,2063.6,2062.8,1.20556197]
[1773308734288,1.21141638,2063.7,2062.8,1.20556197]
[1773308735601,1.76233483,2063.7,2062.8,1.20556197]
[1773308735795,6.60823519,2064.0,2062.8,1.20556197]
[1773308736681,1.76233483,2064.0,2062.8,1.21294103]
[1773308737006,1.76233483,2064.0,2062.9,1.20456197]
[1773308737187,1.76233483,2063.7,2062.9,1.20456197]
[1773308737580,1.76233483,2063.7,2062.8,0.001]
[1773308737581,3.845227,2063.5,2062.8,0.001]
[1773308738187,1.21147509,2063.6,2062.8,0.001]
[1773308739884,1.76233483,2063.4,2062.8,0.001]
[1773308740895,1.76233483,2063.4,2062.2,1.21329693]
[1773308740896,1.76233483,2063.4,2062.2,2.41784622]
[1773308741112,1.76233483,2063.4,2062.3,1.20456197]
[1773308741792,1.21165123,2063.3,2062.3,1.20456197]
[1773308741987,1.21165123,2063.3,2062.3,2.4167958]
[1773308742211,1.76233483,2063.1,2062.2,0.001]
[1773308742403,1.21165123,2063.3,2062.3,1.20456197]
[1773308742911,1.76233483,2063.1,2062.2,0.001]
[1773308744131,1.76233483,2062.4,2061.4,1.12200301]
[1773308744488,1.76233483,2062.1,2061.1,0.001]
[1773308744918,1.76233483,2061.8,2061.1,0.001]
[1773308745416,1.76233483,2061.8,2060.5,1.12200301]
[1773308745920,1.21259155,2061.7,2060.6,2.33524187]
[1773308746228,1.21259155,2061.7,2060.7,1.12200301]
[1773308746438,4.84881453,2062.4,2060.8,1.12200301]
[1773308746721,4.84881453,2062.4,2060.9,1.12200301]
[1773308747696,4.84881453,2062.4,2061.9,0.001]
[1773308747897,4.84881453,2062.4,2061.3,1.12200301]
[1773308747898,4.84881453,2062.4,2061.3,2.33477586]
[1773308748496,2.019284,2062.4,2061.3,2.33477586]
[1773308749007,2.97451481,2062.5,2061.3,2.33477586]
[1773308749208,1.21217998,2062.5,2061.4,1.12200301]
[1773308749536,1.21217998,2062.5,2061.2,1.21284692]
[1773308749537,1.76233483,2062.3,2061.2,1.21284692]
[1773308749916,1.21229754,2062.2,2061.1,4.85165584]
[1773308750124,1.21229754,2062.2,2061.1,1.21294454]
[1773308750298,1.76233483,2062.0,2061.0,1.12200301]
[1773308750697,2.31148888,2062.2,2061.1,1.09275957]
[1773308750698,1.21229754,2062.2,2061.1,1.09275957]
[1773308751920,4.84919018,2062.3,2061.1,2.30570232]
[1773308752121,5.94838152,2062.3,2061.1,1.09275957]
[1773308752436,4.84919018,2062.3,2061.2,1.09275957]
[1773308753856,4.84919018,2062.3,2061.1,4.58941551]
[1773308754134,5.94838152,2062.3,2061.1,2.25241551]
[1773308754702,5.94838152,2062.3,2061.2,1.04427942]
[1773308756006,1.21223876,2062.3,2061.4,1.09275957]
[1773308757551,4.84841869,2062.6,2061.5,1.09275957]